Cogmind - Beta 16.1 @@@ ROGUE MODE // 2026.04.28 @ 20:00:36 Player: JovialTruth Result: Destroyed by G-34 Mercenary with Small Laser Performance ------------- Evolutions (1) 500 Regions Visited (3) 600 Robots Destroyed (37) 185 Value Destroyed (627) 627 Prototype IDs (1) 20 Alien Tech Used (0) 0 Bonus (0) 0 TOTAL SCORE: 1932 Bonus ------- None Cogmind --------- Core Integrity 0/400 Matter 205/300 Energy 100/100 System Corruption 2% Temperature Cool (6) Movement Core (200) Ox3 Location -9/Materials Parts ------- > --- POWER (1) -------- (None) > --- PROPULSION (3) --- (None) > --- UTILITY (3) ------ Medium Storage Unit Machine Analyzer Machine Analyzer > --- WEAPON (2) ------- (None) > --- INVENTORY (10) --- Light Ion Engine Light Ion Engine Flight Unit Flight Unit Flight Unit Improved Heat Sink Experimental Sensor Array Light Armor Plating Peak State ------------ > --- POWER ------------ Light Ion Engine > --- PROPULSION ------- Aluminum Leg Aluminum Leg Aluminum Leg > --- UTILITY ---------- Medium Storage Unit Machine Analyzer Experimental Sensor Array > --- WEAPON ----------- Light Assault Rifle Grenade Launcher > --- INVENTORY -------- Ion Engine Light Ion Engine Aluminum Leg Improved Heat Sink Light Armor Plating Small Laser Assault Rifle Light Assault Rifle Grenade Launcher [Rating: 20] Favorites ----------- Power Light Ion Engine Engine Light Ion Engine Propulsion Aluminum Leg Leg Aluminum Leg Wheel Wheel Flight Unit Flight Unit Utility Medium Storage Unit Device Experimental Sensor Array Storage Medium Storage Unit Processor Machine Analyzer Weapon Light Assault Rifle Energy Gun Small Laser Ballistic Gun Light Assault Rifle Launcher Grenade Launcher Build | -11 -10 -10 -9 ------- Run | Yrd Mat Min Mat Slots Evolved 2 | . . . 2 Power . | . . . . Propulsion 1 | . . . 1 Utility 1 | . . . 1 Weapon . | . . . . Parts Attached 27 | 8 3 1 15 Power 3 | 1 . . 2 Engine 3 | 1 . . 2 Core . | . . . . Reactor . | . . . . Propulsion 11 | 4 . . 7 Treads . | . . . . Leg 5 | 2 . . 3 Wheel 2 | 2 . . . Hover . | . . . . Flight 4 | . . . 4 Utility 6 | 1 2 1 2 Device 2 | . 1 1 . Storage 2 | 1 1 . . Processor 2 | . . . 2 Hackware . | . . . . Protection . | . . . . Artifact . | . . . . Weapon 7 | 2 1 . 4 Energy Gun 1 | 1 . . . Energy Cannon . | . . . . Ballistic Gun 4 | 1 . . 3 Ballistic Cannon . | . . . . Launcher 2 | . 1 . 1 Special Weapon . | . . . . Impact Weapon . | . . . . Slashing Weapon . | . . . . Piercing Weapon . | . . . . Special Melee Weapon . | . . . . Unidentified Prototypes 1 | . . 1 . Parts Lost 15 | . . . 15 Power 3 | . . . 3 Propulsion 5 | . . . 5 Utility . | . . . . Weapon 7 | . . . 7 Highest Loss Streak 5 | . . . 5 To Critical Strikes 1 | . . . 1 Average Backups 7 | 1 6 8 8 Power 1 | . 1 2 2 Propulsion 1 | . 1 2 1 Utility 1 | . . 1 2 Weapon 2 | . 2 3 2 Tool/Special . | . . . . Unused Backups 3 | . . . 3 Power 2 | . . . 2 Propulsion . | . . . . Utility 1 | . . . 1 Weapon . | . . . . Tool/Special . | . . . . Average Slot Usage (%) 94 | . 95 100 91 Engine 12 | . 14 14 10 Leg 25 | . 28 28 22 Flight 2 | . . . 4 Device 11 | . 9 14 10 Storage 12 | . 14 14 11 Processor 4 | . . . 11 Energy Gun 1 | . 3 . . Ballistic Gun 14 | . 14 14 14 Launcher 9 | . 11 14 5 Peak Build Rating 20 | 6 9 16 20 Average Rating 13 | 4 8 12 18 On Entrance 7 | . 6 9 16 Avg Prop Armor Cover (%) 11 | 9 . . 11 Naked Turns . | . . . . Heaviest Build 20 | 10 18 18 20 Greatest Support 30 | 26 20 20 30 Greatest Overweight (x) 5 | . . . 5 Average Overweight (x) . | . . . . Largest Inventory Capacity 10 | 8 10 10 10 Average Capacity 9 | 6 8 10 10 Most Carried 10 | 2 8 10 10 Average Carried 7 | 1 6 8 8 Final Capacity 10 | 8 10 10 10 Final Carried 10 | 2 8 10 8 Class Distribution -------------------- 95% | Mutant 4% | Scavenger-Mutant Dominant Class ---------------- Mutant | -10/Materials Mutant | -10/Mines Mutant | -9/Materials Resources | -11 -10 -10 -9 ----------- Run | Yrd Mat Min Mat Matter Collected 690 | 244 83 109 254 Remotely . | . . . . Salvage Created 846 | . 352 60 434 Parts 73 | . 40 1 32 Haulers Intercepted 1 | . 1 . . Recyclers Shooed 1 | . . . 1 Parts Field Recycled . | . . . . Retrieved Matter . | . . . . Parts Self-Destructed . | . . . . Prevented . | . . . . Parts Restored . | . . . . Kills | -11 -10 -10 -9 ------- Run | Yrd Mat Min Mat Combat Hostiles Destroyed 20 | . 7 . 13 Guns 7 | . 1 . 6 AOE 13 | . 6 . 7 Classes Destroyed 7 | . 6 . 1 Worker 1 | . . . 1 Builder 8 | . 7 . 1 Hauler 1 | . 1 . . Recycler 5 | . 2 1 2 Watcher 2 | . 1 . 1 Swarmer 11 | . 3 . 8 Grunt 9 | . 4 . 5 Best Kill Streak 8 | . 8 1 6 Combat Bots Only 6 | . 3 . 6 Max Kills in Single Turn 4 | . 4 1 2 Gunslinging . | . . . . Exploded 2 | . 2 . 2 Melee . | . . . . Uniques/NPCs Destroyed . | . . . . Combat | -11 -10 -10 -9 -------- Run | Yrd Mat Min Mat Hostile Shots Fired 194 | . 12 . 182 Missed 55 | . 2 . 53 Hits 139 | . 10 . 129 Projectile 139 | . 10 . 129 Critical Strikes 4 | . . . 4 Damage Taken 1720 | . 213 39 1468 Core 470 | . 48 13 409 Absorbed by Shields . | . . . . Core Remaining (%) 87 | 100 . 75 . Volleys Fired 71 | . 12 1 58 Largest 2 | . 2 2 2 Hottest 60 | . 60 50 60 Shots Fired 114 | . 24 2 88 Gun 89 | . 14 1 74 Cannon . | . . . . Launcher 25 | . 10 1 14 Special . | . . . . Kinetic 81 | . 12 1 68 Thermal 8 | . 2 . 6 Explosive 25 | . 10 1 14 Electromagnetic . | . . . . Robot Hit Streak 10 | . 3 2 10 Robot Miss Streak 7 | . 3 . 7 Penetration Max . | . . . . Secondary Targets 2 | . . . 2 Max Gunslinging Chain 1 | . . . 1 Shots Hit Robots 63 | . 10 2 51 Core Hits 57 | . 24 1 32 Critical Kills . | . . . . Critical Parts Destroyed . | . . . . Critical Strikes . | . . . . Melee Attacks . | . . . . Impact . | . . . . Slashing . | . . . . Piercing . | . . . . Sneak Attacks . | . . . . Combat Hostiles . | . . . . Follow-up Attacks . | . . . . Damage Inflicted 2196 | . 1151 47 998 Guns 494 | . 47 10 437 Cannons . | . . . . Explosions 1701 | . 1104 37 560 Melee . | . . . . Ramming 1 | . . . 1 Kinetic 460 | . 47 10 403 Thermal 34 | . . . 34 Explosive 1701 | . 1104 37 560 Electromagnetic . | . . . . Impact . | . . . . Slashing . | . . . . Piercing . | . . . . Highest Corruption 2 | . . . 2 Average Corruption 1 | . . . 1 Corruption Purged . | . . . . Corruption Blocked . | . . . . Overload Shots . | . . . . Overflow Damage 41 | . 7 . 34 Projectiles . | . . . . Explosions 41 | . 7 . 34 Melee . | . . . . Knockbacks . | . . . . Impact . | . . . . Kinetic . | . . . . Secondary . | . . . . Self-Inflicted Damage 260 | . 106 40 114 Shots 9 | . 4 1 4 Rammed 3 | . . . 3 Targets Rammed 3 | . . . 3 Kicked . | . . . . Crushed . | . . . . Highest Temperature 47 | . 20 . 47 Average Temperature 12 | . 13 . 12 Received Heat Transfer 615 | . 51 . 564 Siege Activations . | . . . . Martial Activations . | . . . . Shielding Activations . | . . . . Robots Disrupted . | . . . . Combat Hostiles . | . . . . Robots Corrupted . | . . . . Combat Hostiles . | . . . . Parts Fried . | . . . . Impact Corruptions . | . . . . Robots Melted . | . . . . Combat Hostiles . | . . . . Parts Melted . | . . . . Heat Transferred 75 | . . . 75 Parts Sabotaged . | . . . . Parts Stolen . | . . . . Parts Stripped . | . . . . Power Chain Reactions . | . . . . Alert | -11 -10 -10 -9 ------- Run | Yrd Mat Min Mat Maximum Alert Level 1 | . 1 . 1 Low Security (%) 83 | 100 68 100 77 Level 1 16 | . 31 . 22 Level 2 . | . . . . Level 3 . | . . . . Level 4 . | . . . . Level 5 . | . . . . High Security . | . . . . Max Security . | . . . . Peak Influence 293 | . 293 102 242 Initial 102 | . . 102 . Average 104 | . 143 40 143 Influence Increases 809 | . 373 14 422 Destroy 0b10 Robot/C 400 | . 140 . 260 Destroy 0b10 Robot/NC 85 | . 55 5 25 Destroy Leader 66 | . 34 . 32 Disable Machine 120 | . 60 . 60 Destroy Structure 108 | . 54 9 45 Lose Combat Pursuer 30 | . 30 . . Influence Decreases 735 | . 110 277 348 Entered New Map 161 | . . 161 . Time Decay 434 | . 110 116 208 Lost Part 140 | . . . 140 Squads Dispatched 1 | . 1 . . Investigation . | . . . . Extermination . | . . . . Reinforcement 1 | . 1 . . Assault . | . . . . Garrison . | . . . . Intercept . | . . . . Searches Triggered . | . . . . Construction Impeded . | . . . . Haulers Reinforced . | . . . . Active Scanning Responses . | . . . . Cargo Convoy Interrupts . | . . . . Stealth | -11 -10 -10 -9 --------- Run | Yrd Mat Min Mat Distress Signals 5 | . 2 . 3 Communications Jammed . | . . . . Distress Signals . | . . . . Times Spotted 31 | . 10 . 21 Peak Tracking Total 7 | . 3 . 7 Tactical Retreats 1 | . 1 . . Traps | -11 -10 -10 -9 ------- Run | Yrd Mat Min Mat Traps Triggered 1 | . . . 1 Indirectly . | . . . . Trap Hack Attempts . | . . . . Triggered . | . . . . Disarmed . | . . . . Reprogrammed . | . . . . Reused . | . . . . Traps Extracted . | . . . . Installed . | . . . . Triggered . | . . . . Machines | -11 -10 -10 -9 ---------- Run | Yrd Mat Min Mat Machines Disabled 8 | . 4 . 4 Max in Single Turn 2 | . 2 . 1 Machines Repaired . | . . . . Machines Dismantled . | . . . . Machines Sabotaged . | . . . . Overloaded Fab Kills . | . . . . Hacking | -11 -10 -10 -9 --------- Run | Yrd Mat Min Mat Machines Accessed 2 | . 1 . 1 Terminals 2 | . 1 . 1 Fabricators . | . . . . Repair Stations . | . . . . Recycling Units . | . . . . Scanalyzers . | . . . . Garrison Access . | . . . . Total Hacks 3 | . 1 . 2 Successful 2 | . 1 . 1 Failed 1 | . . . 1 Catastrophic 1 | . . . 1 Database Lockouts . | . . . . Manual 5 | . 1 . 4 Terminals 3 | . 1 . 2 Fabricators . | . . . . Repair Stations . | . . . . Recycling Units . | . . . . Scanalyzers . | . . . . Garrison Access . | . . . . Terminal Hacks . | . . . . Fabricator Hacks . | . . . . Repair Station Hacks . | . . . . Recycling Unit Hacks . | . . . . Scanalyzer . | . . . . Garrison Access Hacks . | . . . . Unauthorized Hacks 2 | . 1 . 1 Terminals 2 | . 1 . 1 Track 2 | . 1 . 1 Fabricators . | . . . . Repair Stations . | . . . . Recycling Units . | . . . . Scanalyzers . | . . . . Garrison Access . | . . . . Data Cores Recovered . | . . . . Used . | . . . . Hacking Detections 2 | . 1 . 1 Full Trace Events . | . . . . Feedback Events . | . . . . Feedback Blocked . | . . . . Robot Schematics Acquired . | . . . . Robots Built . | . . . . Authchips . | . . . . Time . | . . . . Total Robot Build Rating . | . . . . Part Schematics Acquired . | . . . . Parts Built . | . . . . Authchips . | . . . . Time . | . . . . Total Part Build Rating . | . . . . Part Studies Acquired . | . . . . Parts Repaired . | . . . . Time . | . . . . Parts Recycled . | . . . . Recycled Matter . | . . . . Retrieved Matter . | . . . . Retrieved Components . | . . . . Parts Scanalyzed . | . . . . Part Schematics Acquired . | . . . . Parts Damaged . | . . . . Bothacking | -11 -10 -10 -9 ------------ Run | Yrd Mat Min Mat Used RIF Installer . | . . . . Robots Hacked . | . . . . Non-combat . | . . . . Combat . | . . . . Robot Hacks Applied . | . . . . Relay Couplers Released . | . . . . Fabnet Peak Effective % . | . . . . Robots Rewired . | . . . . Allies Hacked . | . . . . Hacks Repelled . | . . . . Allies | -11 -10 -10 -9 -------- Run | Yrd Mat Min Mat Total Allies . | . . . . Largest Group . | . . . . Highest-Rated Group . | . . . . Highest-Rated Ally . | . . . . Total Orders . | . . . . Ally Attacks . | . . . . Total Damage . | . . . . Kills . | . . . . Allies Corrupted . | . . . . Allies Melted . | . . . . Intel | -11 -10 -10 -9 ------- Run | Yrd Mat Min Mat Active Infowar (turns) 659 | . . 157 502 Sensors 633 | . . 157 476 Machine Analysis 476 | . . . 476 Robot Analysis Total . | . . . . Derelict Logs Recovered 1 | . . 1 . Drone Launches . | . . . . Drone Recoveries . | . . . . Exploration | -11 -10 -10 -9 ------------- Run | Yrd Mat Min Mat Turns Passed 1192 | 86 270 334 502 Spaces Moved 733 | 63 189 261 220 Core 3 | 1 . . 2 Treads . | . . . . Legs 674 | 56 189 261 168 Wheels 6 | 6 . . . Hover . | . . . . Flight 50 | . . . 50 Fastest Speed 50 | 50 120 120 120 Average Speed 129 | 115 120 120 151 Slowest Speed 380 | 120 120 120 380 Overloaded Moves . | . . . . Propulsion Burnouts . | . . . . Robots Hopped . | . . . . Potential Cave-ins . | . . . . Cave-ins Triggered . | . . . . Exploration Rate (%) 30 | 4 30 68 18 Regions Visited 3 Branch Regions 1 Pre-discovered Areas 1 | . . 1 . Known Exits Taken . | . . . . Unknown Exits Taken 3 | 1 1 1 . Scrap Searched 1 | . . 1 . Spaces Dug . | . . . . Terrain Destroyed 112 | . 52 9 51 Melee . | . . . . Projectile . | . . . . AOE 112 | . 52 9 51 Terrain Rammed . | . . . . Walls Destroyed . | . . . . Machines Disabled . | . . . . Actions | -11 -10 -10 -9 --------- Run | Yrd Mat Min Mat Total 868 | 72 210 279 307 Wait 14 | . . 14 . Move 730 | 62 188 260 220 Hop . | . . . . Pick Up 14 | 2 6 2 4 Fast Attach 10 | 6 1 . 3 Attach 11 | . . . 11 Detach 3 | . . . 3 Swap 10 | 2 2 1 5 Drop 1 | . 1 . . Fire 71 | . 12 1 58 Melee . | . . . . Ram 3 | . . . 3 Kick . | . . . . Crush . | . . . . Escape Stasis . | . . . . Rewire 1 | . . 1 . Trap . | . . . . Miscellaneous . | . . . . Route ------- -11/Scrapyard -10/Materials -10/Mines (discovered 3 exits: *Mat x2 / [*Exi]) -9/Materials History --------- Turn | Location | Event 11 | -11/Scrapyard | Discovered new exit (range 16) 87 | -11/Scrapyard | Entered Materials 316 | -10/Materials | Build established: Mutant 326 | -10/Materials | Discovered new exit (range 12) 357 | -10/Materials | Entered Mines 385 | -10/Mines | Deemed a non-threat by the Exiles lab entrance 386 | -10/Mines | Discovered new exit (range 5) 455 | -10/Mines | Discovered new exit (range 5) 519 | -10/Mines | Learned Materials emergency access door positions 531 | -10/Mines | Found a damaged Exp. Sensor Array with a note attached 534 | -10/Mines | Found Prototype Device 534 | -10/Mines | Identified Exp. Sensor Array 677 | -10/Mines | Learned location of Storage (-7) 679 | -10/Mines | Discovered new exit (range 8) 691 | -10/Mines | Entered Materials 691 | -9/Materials | Evolved 2 slots: Propulsion x1, Utility x1 1003 | -9/Materials | Lost 5 parts (3n2w) 1160 | -9/Materials | Core integrity fell below 50% 1161 | -9/Materials | Lost 3 parts (1p1n1w) 1188 | -9/Materials | Core integrity fell below 20% 1193 | -9/Materials | Destroyed by G-34 Mercenary with Small Laser Last Messages --------------- 01113_ K-01 Serf collects debris. 01116_ K-01 Serf cleans the Matter Pump. 01120_ K-01 Serf collects debris. 01126_ U-05 Engineer destroyed. 01126_ Assault Rifle destroyed. 01129_ Ion Engine destroyed. 01129_ K-01 Serf cleans the Matter Pump. 01130_ Flight Unit destroyed. 01131_ Acquired Flight Unit. 01135_ Acquired 56 matter. 01167_ Aluminum Leg destroyed. 01171_ Lgt. Assault Rifle destroyed. 01173_ Sml. Laser destroyed. 01175_ Critical hit (Burn: +37). 01180_ Ion Engine destroyed. 01185_ Lgt. Assault Rifle destroyed. 01188_ Slammed into G-47 Trooper. 01190_ Destabilizing: System corrupted (+1). 01191_ Critical hit (Burn: +37). 01192_ Slammed into G-47 Trooper. Map ----- +----------------------------------------------------+ | ?????????????????????????????????????????????????? | | ?????????????????????????????????????????????????? | | ?????????????????????????????????????????????????? | | ?????????????????????????????????????????????????? | | ?????????????????????????????????????????????????? | | ?????????????????????????????????????????????????? | | ??????????????????????????????????????????????+??? | | ?????????????????????????????????????????????????? | | ???????????????????????"""???????????????????????? | | ???????????????????????"""???????????????? ??????? | | ???????????????????????"""?????????????? #?????? | | ????????????????????????????????###+#### #?????? | | ??????????????????#########????? #?????? | | ?????????????????? ] #?????? #?????? | | ?????????????????? #?????? """ #?????? | | ?????????????????? ###+#### """ #?????? | | ????????????? ??# """ # # """ #?????? | | ???????????? ?# """" # + ^ #?????? | | ???????????? k # """" # # ^ ####??? | | ?????????????? /k """ " # % # !##?? | | ????????????????# " # * #= !! !#?? | | ????????????????# #= # !! !#?? | | ????????????????# "u ########!!!! !#?? | | ????????????????# " g ########!%| !#?? | | ????????????????# " gm/ = !=* !##?? | | ????????????????# @##### %*% ####??? | | ????????????????# g##### [[= #?????? | | ????????????????# #??##= = % ####### | | ????????????????# #???# =%! u | | ????????????????############### * ! | | ????????????????????????+ | "T | | ????????????????????????#######+####### | | ???????????????????"""????????????????# | | ???????????????????"""????????????????######## | | ???????????????????"""????????????????????# # | | ??????????????????????????????????????????# ## | | ??????????????????????????????????????????# "" | | ??????????????????????????????????????????## # "" | | ???????????????????????????????????????????### "" | | ????????????????????????????????????????????##* | | ????????????????????????????????????????????# | | | ????????????????????????????????????????????##=% | | ????????????????????????????????????????????##[= | | ????????????????????????????????????????????#[=[ | | ????????????????????????????????????????????# | | ????????????????????????????????????????????## | | ?????????????????????????????????????????????# | | ?????????????????????????????????????????????# # | | ?????????????????????????????????????????????##### | | ?????????????????????????????????????????????????? | +----------------------------------------------------+ Best States ------------- Heat Dissipation 39 Energy Generation 10 Energy Capacity 250 Matter Stores 300 Matter Capacity 300 Sight Range 16 Robot Scan Range 20 Terrain Scan Density 10 Evasion (%) 55 Item Schematics ----------------- None Robot Schematics ------------------ None Fabricated ------------ Nothing Repaired ---------- Nothing Studied --------- None Alien Tech Used ----------------- None Achievements -------------- Loot Pinata Challenges ------------ None Game ------ Seed DecoyMassStabilizer Manual? 0 Play Time 00:20:48 Cumulative 7.4 hours Start 2026.04.28 @ 19:38:46 End 2026.04.28 @ 20:00:36 Sessions 1 Manual Loads 0 Difficulty Rogue Special Mode None Game No. 11 Rogue 11 Adventurer 0 Explorer 0 Win Type - Total 0 Types 0/0/0/0/0/0/0/0/0/0 Lore% 2 Gallery% 7 Achievement% 8 Wizard Run 0 Options --------- Layout 0 ASCII 1 Keyboard 1 Movement Vi Keybinds 0 Fullscreen 1 Font 36/X11++ Map View 76x50 Zoom Use 0% Tactical HUD 1 Map Filters NONE Filters NONE Steam 1 RUN: 1d1fdd86-2b1e-43d4-bf8f-24158a287085